fUSD/lending_fUSD_20241123
["ID","MTS","AMOUNT","RATE_DAILY","PERIOD"]
[343125061,1732373463221,-500.0,0.00055342,120]
[343125062,1732373463231,-500.0,0.00055342,120]
[343125063,1732373463241,-500.0,0.00055342,120]
[343125064,1732373463251,-500.0,0.00055342,120]
[343125065,1732373463261,-500.0,0.00055342,120]
[343125066,1732373463272,-500.0,0.00055342,120]
[343125067,1732373463281,-500.0,0.00055342,120]
[343125068,1732373463291,-500.0,0.00055342,120]
[343125069,1732373463301,-500.0,0.00055342,120]
[343125070,1732373463311,-708.99,0.00055342,120]
[343125071,1732373463321,-500.0,0.00055342,120]
[343125072,1732373463331,-617.65,0.00055342,120]
[343125073,1732373463342,-822.16,0.00055342,120]
[343125074,1732373463352,-266.82,0.00055342,120]
[343125075,1732373463362,-237.80346723,0.00055342,120]
[343125076,1732373463373,-1391.37,0.00055342,120]
[343125077,1732373463383,-500.0,0.00055342,120]
[343125078,1732373463394,-500.0,0.00055342,120]
[343125079,1732373463404,-500.0,0.00055342,120]
[343125080,1732373463414,-992.27,0.00055342,120]
[343125081,1732373463424,-500.0,0.00055342,120]
[343125082,1732373463434,-500.0,0.00055342,120]
[343125083,1732373463443,-500.0,0.00055342,120]
[343125084,1732373463454,-500.0,0.00055342,120]
[343125085,1732373463465,-430.09916891,0.00055342,120]
[343125086,1732373463476,-500.0,0.00055342,120]
[343125087,1732373463486,-500.0,0.00055342,30]
[343125088,1732373463496,-500.0,0.00055342,120]
[343125089,1732373463506,-500.0,0.00055342,120]
[343125090,1732373463516,-500.0,0.00055342,120]
[343125091,1732373463529,-500.0,0.00055342,120]
[343125092,1732373463539,-500.0,0.00055342,120]
[343125093,1732373463550,-500.0,0.00055342,120]
[343125094,1732373463560,-500.0,0.00055342,120]
[343125095,1732373463570,-500.0,0.00055342,120]
[343125096,1732373463580,-512.69006659,0.00055342,120]
[343125097,1732373463591,-500.0,0.00055342,120]
[343125098,1732373463601,-500.0,0.00055342,120]
[343125099,1732373463610,-500.0,0.00055342,120]
[343125100,1732373463622,-500.0,0.00055342,120]
[343125101,1732373463632,-515.42,0.00055342,120]
[343125102,1732373463642,-500.0,0.00055342,120]
[343125103,1732373463652,-500.0,0.00055342,120]
[343125104,1732373463663,-500.0,0.00055342,120]
[343125105,1732373463673,-500.0,0.00055342,120]
[343125106,1732373463683,-176.11,0.00055342,120]
[343125107,1732373463693,-500.0,0.00055342,120]
[343125108,1732373463704,-571.4,0.00055342,120]
[343125109,1732373463714,-500.0,0.00055342,120]
[343125110,1732373463724,-500.0,0.00055342,120]
[343125111,1732373463735,-518.24,0.00055342,120]
[343125112,1732373463746,-500.0,0.00055342,120]
[343125113,1732373463756,-500.0,0.00055342,120]
[343125114,1732373463769,-664.13,0.00055342,120]
[343125115,1732373463779,-500.0,0.00055342,120]
[343125116,1732373463789,-500.0,0.00055342,120]
[343125117,1732373463800,-500.0,0.00055342,120]
[343125118,1732373463810,-500.0,0.00055342,120]
[343125119,1732373463821,-500.0,0.00055342,120]
[343125120,1732373463831,-500.0,0.00055342,120]
[343125121,1732373463842,-500.0,0.00055342,120]
[343125122,1732373463852,-500.0,0.00055342,120]
[343125123,1732373463863,-3090.0,0.00055342,120]
[343125124,1732373463874,-500.0,0.00055342,120]
[343125125,1732373463884,-537.62,0.00055342,120]
[343125126,1732373463895,-500.0,0.00055342,120]
[343125127,1732373463905,-610.45,0.00055342,120]
[343125128,1732373463915,-500.0,0.00055342,120]
[343125129,1732373463926,-500.0,0.00055342,120]
[343125130,1732373463937,-500.0,0.00055342,120]
[343125131,1732373463948,-500.0,0.00055342,120]
[343125132,1732373463958,-151.0,0.00055342,120]
[343125133,1732373463970,-500.0,0.00055342,120]
[343125134,1732373463981,-508.85113368,0.00055342,120]
[343125135,1732373463992,-362.41,0.00055342,120]
[343125136,1732373464003,-500.0,0.00055342,120]
[343125137,1732373464014,-663.09,0.00055342,120]
[343125138,1732373464028,-511.80625579,0.00055342,120]
[343125139,1732373464039,-500.0,0.00055342,120]
[343125140,1732373464049,-525.24937074,0.00055342,120]
[343125141,1732373464060,-500.0,0.00055342,120]
[343125142,1732373464072,-500.0,0.00055342,120]
[343125143,1732373464083,-500.0,0.00055342,120]
[343125144,1732373464094,-500.0,0.00055342,120]
[343125145,1732373464109,-500.0,0.00055342,120]
[343125146,1732373464120,-1284.52,0.00055342,120]
[343125147,1732373464131,-500.0,0.00055342,120]
[343125148,1732373464141,-2400.59,0.00055342,120]
[343125149,1732373464151,-500.0,0.00055342,120]
[343125150,1732373464161,-500.0,0.00055342,120]
[343125151,1732373464172,-540.2,0.00055342,120]
[343125152,1732373464182,-500.0,0.00055342,120]
[343125153,1732373464193,-514.03890169,0.00055342,120]
[343125154,1732373464203,-3080.8,0.00055342,120]
[343125155,1732373464213,-510.07989961,0.00055342,120]
[343125156,1732373464223,-500.0,0.00055342,120]
[343125157,1732373464234,-500.0,0.00055342,120]
[343125158,1732373464244,-500.0,0.00055342,120]
[343125159,1732373464254,-500.0,0.00055342,120]
[343125160,1732373464264,-500.0,0.00055342,120]
[343125161,1732373464278,-500.0,0.00055342,120]
[343125162,1732373464288,-251.29073264,0.00055342,120]
[343125163,1732373464299,-670.63,0.00055342,120]
[343125164,1732373464309,-500.0,0.00055342,120]
[343125165,1732373464319,-500.0,0.00055342,120]
[343125166,1732373464330,-500.0,0.00055342,120]
[343125167,1732373464340,-500.0,0.00055342,120]
[343125168,1732373464350,-500.0,0.00055342,120]
[343125169,1732373464360,-539.55,0.00055342,120]
[343125170,1732373464371,-500.0,0.00055342,120]
[343125171,1732373464382,-500.0,0.00055342,120]
[343125172,1732373464393,-500.0,0.00055342,2]
[343125173,1732373464403,-500.0,0.00055342,120]
[343125174,1732373464414,-500.0,0.00055342,120]
[343125175,1732373464425,-151.0,0.00055342,120]
[343125176,1732373464435,-500.0,0.00055342,120]
[343125177,1732373464446,-500.0,0.00055342,120]
[343125178,1732373464456,-201.92754761,0.00055342,120]
[343125179,1732373464467,-253.7135427,0.00055342,120]
[343125180,1732373464479,-500.0,0.00055342,120]
[343125181,1732373464488,-319.72,0.00055342,120]
[343125182,1732373464499,-241.23860442,0.00055342,120]
[343125183,1732373464510,-500.0,0.00055342,120]
[343125184,1732373464523,-500.0,0.00055342,120]
[343125185,1732373464535,-500.0,0.00055342,120]
[343125186,1732373464546,-500.0,0.00055342,120]
[343125187,1732373464556,-500.0,0.00055342,120]
[343125188,1732373464567,-589.8,0.00055342,120]
[343125189,1732373464577,-574.81,0.00055342,120]
[343125190,1732373464588,-500.0,0.00055342,120]
[343125191,1732373464599,-500.0,0.00055342,120]
[343125192,1732373464609,-500.0,0.00055342,120]
[343125193,1732373464619,-500.0,0.00055342,120]
[343125194,1732373464630,-500.0,0.00055342,120]
[343125195,1732373464641,-500.0,0.00055342,120]
[343125196,1732373464652,-287.53,0.00055479,2]
[343125197,1732373464662,-507.08745587,0.000555,15]
[343125198,1732373464673,-622.77210314,0.00055616,2]
[343125199,1732373464683,-500.0,0.00055616,120]
[343125200,1732373464694,-354.5,0.00055616,120]
[343125201,1732373464705,-467.04,0.00055616,120]
[343125202,1732373464715,-500.0,0.00055616,120]
[343125203,1732373464727,-500.0,0.00055616,120]
[343125204,1732373464736,-500.0,0.00055616,120]
[343125205,1732373464750,-500.0,0.00055616,120]
[343125206,1732373464760,-479.86437967,0.00055616,120]
[343125207,1732373464774,-500.0,0.00055616,120]
[343125208,1732373464789,-573.17,0.00055616,120]
[343125209,1732373464799,-500.0,0.00055616,120]
[343125210,1732373464811,-500.0,0.00055616,120]
[343125211,1732373464823,-500.0,0.00055616,120]
[343125212,1732373464834,-500.0,0.00055616,120]
[343125213,1732373464845,-500.0,0.00055616,120]
[343125214,1732373464856,-530.46,0.00055616,120]
[343125215,1732373464867,-212.78,0.00055616,120]
[343125216,1732373464879,-500.0,0.00055616,120]
[343125217,1732373464890,-500.0,0.00055616,120]
[343125218,1732373464902,-1022.51,0.00055616,120]
[343125219,1732373464912,-500.0,0.00055616,120]
[343125220,1732373464922,-500.0,0.00055616,120]
[343125221,1732373464932,-500.0,0.00055616,120]
[343125222,1732373464941,-500.0,0.00055616,120]
[343125223,1732373464951,-500.0,0.00055616,120]
[343125224,1732373464961,-500.0,0.00055616,120]
[343125225,1732373464972,-500.0,0.00055616,120]
[343125226,1732373464982,-792.82,0.00055616,120]
[343125227,1732373464992,-596.47342801,0.00055616,120]
[343125228,1732373465007,-500.0,0.00055616,120]
[343125229,1732373465020,-500.0,0.00055616,120]
[343125230,1732373465031,-500.0,0.00055616,120]
[343125231,1732373465041,-500.0,0.00055616,120]
[343125232,1732373465053,-500.0,0.00055616,120]
[343125233,1732373465063,-500.0,0.00055616,120]
[343125234,1732373465073,-500.0,0.00055616,120]
[343125235,1732373465084,-500.0,0.00055616,120]
[343125236,1732373465093,-500.0,0.00055616,120]
[343125237,1732373465103,-577.35,0.00055616,120]
[343125238,1732373465114,-500.0,0.00055616,120]
[343125239,1732373465124,-500.0,0.00055616,120]
[343125240,1732373465134,-500.0,0.00055616,120]
[343125241,1732373465144,-500.0,0.00055616,120]
[343125242,1732373465153,-500.0,0.00055616,120]
[343125243,1732373465163,-500.0,0.00055616,120]
[343125244,1732373465173,-500.0,0.00055616,120]
[343125245,1732373465184,-500.0,0.00055616,120]
[343125246,1732373465195,-500.0,0.00055616,120]
[343125247,1732373465205,-500.0,0.00055616,120]
[343125248,1732373465329,-500.0,0.00055616,120]
[343125249,1732373465340,-500.0,0.00055616,120]
[343125250,1732373465350,-500.0,0.00055616,120]
[343125251,1732373465359,-500.0,0.00055616,120]
[343125252,1732373465369,-360.55526533,0.00055616,120]
[343125253,1732373465378,-500.0,0.00055616,120]
[343125254,1732373465388,-500.0,0.00055616,120]
[343125255,1732373465397,-500.0,0.00055616,120]
[343125256,1732373465407,-500.0,0.00055616,120]
[343125257,1732373465417,-500.0,0.00055616,120]
[343125258,1732373465427,-500.0,0.00055616,120]
[343125259,1732373465436,-500.0,0.00055616,120]
[343125260,1732373465446,-292.36744489,0.00055616,120]
[343125261,1732373465455,-621.66,0.00055616,120]
[343125262,1732373465465,-500.0,0.00055616,120]
[343125263,1732373465475,-500.0,0.00055616,120]
[343125264,1732373465484,-188.13052937,0.00055616,120]
[343125265,1732373465493,-500.0,0.00055616,120]
[343125266,1732373465503,-500.0,0.00055616,120]
[343125267,1732373465512,-500.0,0.00055616,120]
[343125268,1732373465523,-636.38738527,0.00055616,120]
[343125269,1732373465534,-527.41452292,0.00055616,120]
[343125270,1732373465544,-500.0,0.00055616,120]
[343125271,1732373465555,-500.0,0.00055616,120]
[343125272,1732373465565,-854.22,0.00055616,120]
[343125273,1732373465575,-500.0,0.00055616,120]
[343125274,1732373465586,-744.83,0.00055616,120]
[343125275,1732373465596,-500.0,0.00055616,120]
[343125276,1732373465607,-500.0,0.00055616,120]
[343125277,1732373465617,-500.0,0.00055616,120]
[343125278,1732373465627,-500.0,0.00055616,120]
[343125279,1732373465637,-500.0,0.00055616,120]
[343125280,1732373465647,-500.0,0.00055616,120]
[343125281,1732373465657,-500.0,0.00055616,120]
[343125282,1732373465666,-500.0,0.00055616,120]
[343125283,1732373465676,-500.0,0.00055616,120]
[343125284,1732373465686,-500.0,0.00055616,120]
[343125285,1732373465697,-500.0,0.00055616,120]
[343125286,1732373465707,-215.6,0.00055616,120]
[343125287,1732373465718,-500.0,0.00055616,120]
[343125288,1732373465728,-500.0,0.00055616,120]
[343125289,1732373465738,-500.0,0.00055616,120]
[343125290,1732373465749,-500.0,0.00055616,120]
[343125291,1732373465759,-426.72,0.00055616,120]
[343125292,1732373465771,-500.0,0.00055616,120]
[343125293,1732373465781,-500.0,0.00055616,120]
[343125294,1732373465791,-500.0,0.00055616,120]
[343125295,1732373465801,-500.0,0.00055616,120]
[343125296,1732373465811,-500.0,0.00055616,120]
[343125297,1732373465821,-500.0,0.00055616,120]
[343125298,1732373465830,-500.0,0.00055616,120]
[343125299,1732373465840,-500.0,0.00055616,120]
[343125300,1732373465849,-351.09915742,0.00055616,120]
[343125301,1732373465859,-623.70727331,0.00055616,120]
[343125302,1732373465869,-500.0,0.00055616,120]
[343125303,1732373465879,-500.0,0.00055616,120]
[343125304,1732373465888,-500.0,0.00055616,120]
[343125305,1732373465898,-392.65,0.00055616,120]
[343125306,1732373465907,-500.0,0.00055616,120]
[343125307,1732373465916,-500.0,0.00055616,120]
[343125308,1732373465927,-503.54,0.00055616,120]
[343125309,1732373465937,-500.0,0.00055616,120]
[343125310,1732373465947,-500.0,0.00055616,120]
[343125311,1732373465957,-500.0,0.00055616,120]
[343125312,1732373465967,-500.0,0.00055616,120]
[343125313,1732373465976,-500.0,0.00055616,2]
[343125314,1732373465985,-500.0,0.00055616,120]
[343125315,1732373465995,-1501.53,0.00055616,120]
[343125316,1732373466006,-1009.39,0.00055616,120]
[343125317,1732373466016,-930.45,0.00055616,120]
[343125318,1732373466030,-503.19484783,0.00055616,120]
[343125319,1732373466040,-275.34,0.00055616,120]
[343125320,1732373466050,-500.0,0.00055616,120]
[343125321,1732373466060,-527.46,0.00055616,120]
[343125322,1732373466070,-466.3834799,0.00055616,120]
[343125323,1732373466080,-500.0,0.00055616,120]
[343125324,1732373466090,-500.0,0.00055616,120]
[343125325,1732373466101,-500.0,0.00055616,120]
[343125326,1732373466111,-500.0,0.00055616,120]
[343125327,1732373466122,-500.0,0.00055616,120]
[343125328,1732373466131,-500.0,0.00055616,120]
[343125329,1732373466141,-1151.52,0.00055616,120]
[343125330,1732373466150,-735.87,0.00055616,120]
[343125331,1732373466160,-500.0,0.00055616,120]
[343125332,1732373466169,-521.75,0.00055616,120]
[343125333,1732373466179,-500.0,0.00055616,120]
[343125334,1732373466188,-194.73048249,0.00055616,120]
[343125335,1732373466198,-647.79,0.00055616,21]
[343125336,1732373466207,-500.0,0.00055616,120]
[343125337,1732373466216,-649.36,0.00055616,120]
[343125338,1732373466226,-500.0,0.00055616,120]
[343125339,1732373466235,-500.0,0.00055616,120]
[343125340,1732373466244,-500.0,0.00055616,120]
[343125341,1732373466253,-716.42,0.00055616,120]
[343125342,1732373466263,-522.15,0.00055616,120]
[343125343,1732373466275,-500.0,0.00055616,120]
[343125344,1732373466285,-564.24,0.00055616,120]
[343125345,1732373466295,-332.59,0.00055616,120]
[343125346,1732373466305,-500.0,0.00055616,120]
[343125347,1732373466315,-500.0,0.00055616,120]
[343125348,1732373466324,-500.0,0.00055616,120]
[343125349,1732373466334,-500.0,0.00055616,120]
[343125350,1732373466343,-500.0,0.00055616,120]
[343125351,1732373466352,-500.0,0.00055616,120]
[343125352,1732373466362,-515.85,0.00055616,120]
[343125353,1732373466371,-603.14,0.00055616,120]
[343125354,1732373466381,-261.4135244,0.00055616,120]
[343125355,1732373466391,-500.0,0.00055616,120]
[343125356,1732373466400,-558.24,0.00055616,120]
[343125357,1732373466410,-500.0,0.00055616,120]
[343125358,1732373466419,-500.0,0.00055616,120]
[343125359,1732373466429,-500.0,0.00055616,120]
[343125360,1732373466439,-500.0,0.00055616,120]
[343125361,1732373466450,-500.0,0.00055616,120]
[343125362,1732373466460,-500.0,0.00055616,120]
[343125363,1732373466470,-500.0,0.00055616,120]
[343125364,1732373466479,-500.0,0.00055616,120]
[343125365,1732373466490,-500.0,0.00055616,120]
[343125366,1732373466499,-627.69,0.00055616,120]
[343125367,1732373466509,-596.11,0.00055616,120]
[343125368,1732373466521,-500.0,0.00055616,120]
[343125369,1732373466531,-500.0,0.00055616,120]
[343125370,1732373466541,-500.0,0.00055616,120]
[343125371,1732373466551,-643.97359257,0.00055616,120]
[343125372,1732373466561,-507.4754374,0.00055616,120]
[343125373,1732373466571,-1166.25,0.00055616,120]
[343125374,1732373466581,-575.13645175,0.00055616,120]
[343125375,1732373466591,-508.59805814,0.00055616,120]
[343125376,1732373466601,-500.0,0.00055616,120]
[343125377,1732373466611,-325.854077,0.00055616,120]
[343125378,1732373466622,-427.08,0.00055616,120]
[343125379,1732373466633,-500.0,0.00055616,120]
[343125380,1732373466644,-500.0,0.00055616,120]
[343125381,1732373466653,-787.51,0.00055616,120]
[343125382,1732373466663,-500.0,0.00055616,120]
[343125383,1732373466673,-510.94819904,0.00055616,120]
[343125384,1732373466682,-500.0,0.00055616,120]
[343125385,1732373466692,-500.0,0.00055616,120]
[343125386,1732373466702,-500.0,0.00055616,120]
[343125387,1732373466712,-500.0,0.00055616,120]
[343125388,1732373466722,-573.04,0.00055616,120]
[343125389,1732373466732,-708.99,0.00055616,120]
[343125390,1732373466743,-386.41080223,0.00055616,120]
[343125391,1732373466752,-617.65,0.00055616,120]
[343125392,1732373466762,-822.16,0.00055616,120]
[343125393,1732373466775,-1391.37,0.00055616,120]
[343125394,1732373466785,-500.0,0.00055616,120]
[343125395,1732373466796,-500.0,0.00055616,120]
[343125396,1732373466807,-509.17325008,0.00055616,120]
[343125397,1732373466818,-992.27,0.00055616,120]
[343125398,1732373466831,-500.0,0.00055616,120]
[343125399,1732373466842,-576.05661126,0.00055616,120]
[343125400,1732373466853,-592.63,0.00055616,120]
[343125401,1732373466863,-500.0,0.00055616,30]
[343125402,1732373466873,-643.55092073,0.00055616,120]
[343125403,1732373466883,-378.38,0.00055616,120]
[343125404,1732373466893,-500.0,0.00055616,120]
[343125405,1732373466902,-500.0,0.00055616,120]
[343125406,1732373466910,-500.0,0.00055616,120]
[343125407,1732373466916,-500.0,0.00055616,120]
[343125408,1732373466927,-645.2235376,0.00055616,120]
[343125409,1732373466941,-500.0,0.00055616,120]
[343125410,1732373466951,-500.0,0.00055616,120]
[343125411,1732373466962,-500.0,0.00055616,120]
[343125412,1732373466972,-515.42,0.00055616,120]
[343125413,1732373466982,-500.0,0.00055616,120]
[343125414,1732373466993,-500.0,0.00055616,120]
[343125415,1732373467008,-531.46034033,0.00055616,120]
[343125416,1732373467018,-571.4,0.00055616,120]
[343125417,1732373467029,-518.24,0.00055616,120]
[343125418,1732373467040,-516.06758349,0.00055616,120]
[343125419,1732373467051,-513.5912104,0.00055616,120]
[343125420,1732373467060,-664.13,0.00055616,120]
[343125421,1732373467071,-500.0,0.00055616,120]
[343125422,1732373467083,-500.0,0.00055616,120]
[343125423,1732373467093,-500.0,0.00055616,120]
[343125424,1732373467103,-3090.0,0.00055616,120]
[343125425,1732373467113,-500.0,0.00055616,120]
[343125426,1732373467123,-537.62,0.00055616,120]
[343125427,1732373467133,-610.45,0.00055616,120]
[343125428,1732373467143,-500.0,0.00055616,120]
[343125429,1732373467153,-500.0,0.00055616,120]
[343125430,1732373467163,-500.0,0.00055616,120]
[343125431,1732373467173,-151.0,0.00055616,120]
[343125432,1732373467183,-500.0,0.00055616,120]
[343125433,1732373467193,-500.0,0.00055616,120]
[343125434,1732373467203,-663.09,0.00055616,120]
[343125435,1732373467212,-500.0,0.00055616,120]
[343125436,1732373467221,-315.9,0.00055616,120]
[343125437,1732373467231,-1284.52,0.00055616,120]
[343125438,1732373467240,-500.0,0.00055616,120]
[343125439,1732373467250,-2400.59,0.00055616,120]
[343125440,1732373467260,-500.0,0.00055616,120]
[343125441,1732373467273,-540.2,0.00055616,120]
[343125442,1732373467283,-3080.8,0.00055616,120]
[343125443,1732373467294,-500.0,0.00055616,120]
[343125444,1732373467304,-500.0,0.00055616,120]
[343125445,1732373467413,-556.31637507,0.00055616,120]
[343125446,1732373467424,-500.0,0.00055616,120]
[343125447,1732373467435,-500.0,0.00055616,120]
[343125448,1732373467445,-670.63,0.00055616,120]
[343125449,1732373467454,-500.99371586,0.00055616,120]
[343125450,1732373467464,-500.0,0.00055616,120]
[343125451,1732373467473,-500.0,0.00055616,120]
[343125452,1732373467483,-500.0,0.00055616,120]
[343125453,1732373467493,-500.0,0.00055616,120]
[343125454,1732373467503,-539.55,0.00055616,120]
[343125455,1732373467514,-500.0,0.00055616,120]
[343125456,1732373467527,-500.0,0.00055616,120]
[343125457,1732373467538,-519.01674405,0.00055616,120]
[343125458,1732373467549,-500.0,0.00055616,120]
[343125459,1732373467559,-151.0,0.00055616,120]
[343125460,1732373467569,-500.0,0.00055616,120]
[343125461,1732373467579,-500.0,0.00055616,120]
[343125462,1732373467591,-500.0,0.00055616,120]
[343125463,1732373467601,-500.0,0.00055616,120]
[343125464,1732373467612,-500.0,0.00055616,120]
[343125465,1732373467622,-500.0,0.00055616,120]
[343125466,1732373467633,-589.8,0.00055616,120]
[343125467,1732373467643,-574.81,0.00055616,120]
[343125468,1732373467654,-500.0,0.00055616,120]
[343125469,1732373467664,-500.0,0.00055616,120]
[343125470,1732373467675,-500.0,0.00055616,120]
[343125471,1732373467686,-500.0,0.00055616,120]
[343125472,1732373467697,-500.0,0.00055616,120]
[343125473,1732373467707,-500.0,0.00055616,120]
[343125474,1732373467719,-500.0,0.0005589,120]
[343125475,1732373467729,-285.7066295,0.0005589,120]
[343125476,1732373467739,-573.17,0.0005589,120]
[343125477,1732373467750,-500.0,0.0005589,120]
[343125478,1732373467760,-500.0,0.0005589,120]
[343125479,1732373467773,-536.65918971,0.0005589,120]
[343125480,1732373467783,-500.0,0.0005589,120]
[343125481,1732373467793,-500.0,0.0005589,120]
[343125482,1732373467803,-1022.51,0.0005589,120]
[343125483,1732373467814,-500.0,0.0005589,120]
[343125484,1732373467824,-500.0,0.0005589,120]
[343125485,1732373467835,-453.7,0.0005589,120]
[343125486,1732373467845,-500.0,0.0005589,120]
[343125487,1732373467856,-792.82,0.0005589,120]
[343125488,1732373467869,-500.0,0.0005589,120]
[343125489,1732373467879,-500.0,0.0005589,120]
[343125490,1732373467888,-193.0137415,0.0005589,120]
[343125491,1732373467898,-500.0,0.0005589,120]
[343125492,1732373467908,-331.36,0.0005589,120]
[343125493,1732373467919,-500.0,0.0005589,120]
[343125494,1732373467929,-500.0,0.0005589,120]
[343125495,1732373467940,-500.0,0.0005589,120]
[343125496,1732373467952,-500.0,0.0005589,120]
[343125497,1732373467962,-500.0,0.0005589,120]
[343125498,1732373467972,-500.0,0.0005589,120]
[343125499,1732373467982,-500.0,0.0005589,120]
[343125500,1732373467991,-348.93500035,0.0005589,120]
[343125501,1732373468002,-500.0,0.0005589,120]
[343125502,1732373468016,-500.0,0.0005589,120]
[343125503,1732373468033,-500.0,0.0005589,120]
[343125504,1732373468043,-500.0,0.0005589,120]
[343125505,1732373468055,-536.3126983,0.0005589,120]
[343125506,1732373468066,-475.92,0.0005589,120]
[343125507,1732373468077,-500.0,0.0005589,120]
[343125508,1732373468087,-500.0,0.0005589,120]
[343125509,1732373468098,-500.0,0.0005589,120]
[343125510,1732373468108,-621.66,0.0005589,120]
[343125511,1732373468118,-500.0,0.0005589,120]
[343125512,1732373468128,-500.0,0.0005589,120]
[343125513,1732373468138,-500.0,0.0005589,120]
[343125514,1732373468147,-500.0,0.0005589,120]
[343125515,1732373468157,-500.0,0.0005589,120]
[343125516,1732373468168,-500.0,0.0005589,120]
[343125517,1732373468178,-854.22,0.0005589,120]
[343125518,1732373468188,-500.0,0.0005589,120]
[343125519,1732373468198,-744.83,0.0005589,120]
[343125520,1732373468209,-500.0,0.0005589,120]
[343125521,1732373468219,-500.0,0.0005589,120]
[343125522,1732373468229,-500.0,0.0005589,120]
[343125523,1732373468240,-151.0,0.0005589,120]
[343125524,1732373468251,-500.0,0.0005589,120]
[343125525,1732373468261,-500.0,0.0005589,120]
[343125526,1732373468273,-500.0,0.0005589,120]
[343125527,1732373468283,-500.0,0.0005589,120]
[343125528,1732373468294,-500.0,0.0005589,120]
[343125529,1732373468305,-500.0,0.0005589,120]
[343125530,1732373468315,-500.0,0.0005589,120]
[343125531,1732373468325,-500.0,0.0005589,120]
[343125532,1732373468335,-500.0,0.0005589,120]
[343125533,1732373468346,-500.0,0.0005589,120]
[343125534,1732373468357,-500.0,0.0005589,120]
[343125535,1732373468367,-500.0,0.0005589,120]
[343125536,1732373468377,-500.0,0.0005589,120]
[343125537,1732373468387,-500.0,0.0005589,120]
[343125538,1732373468397,-500.0,0.0005589,120]
[343125539,1732373468407,-500.0,0.0005589,120]
[343125540,1732373468416,-413.53,0.0005589,120]
[343125541,1732373468425,-500.0,0.0005589,120]
[343125542,1732373468434,-500.0,0.0005589,120]
[343125543,1732373468444,-300.17092939,0.0005589,120]
[343125544,1732373468453,-500.0,0.0005589,120]
[343125545,1732373468463,-598.83,0.0005589,120]
[343125546,1732373468472,-500.0,0.0005589,120]
[343125547,1732373468482,-500.0,0.0005589,120]
[343125548,1732373468492,-500.0,0.0005589,120]
[343125549,1732373468501,-500.0,0.0005589,120]
[343125550,1732373468510,-500.0,0.0005589,120]
[343125551,1732373468521,-500.0,0.0005589,2]
[343125552,1732373468531,-500.0,0.0005589,120]
[343125553,1732373468540,-1501.53,0.0005589,120]
[343125554,1732373468549,-1009.39,0.0005589,120]
[343125555,1732373468559,-930.45,0.0005589,120]
[343125556,1732373468568,-500.0,0.0005589,120]
[343125557,1732373468578,-527.46,0.0005589,120]
[343125558,1732373468588,-500.0,0.0005589,120]
[343125559,1732373468597,-500.0,0.0005589,120]
[343125560,1732373468607,-500.0,0.0005589,120]